fUST/lending_fUST_20250806
["ID","MTS","AMOUNT","RATE_DAILY","PERIOD"]
[377625815,1754465444704,-1000.0,0.00028121,5]
[377625816,1754465444717,-154.59097771,0.00028121,5]
[377625817,1754465444727,-600.0,0.0002813,2]
[377625818,1754465444737,-206.0,0.0002814,30]
[377625819,1754465444748,-160.0,0.00028164,3]
[377625820,1754465444758,-160.0,0.00028164,3]
[377625821,1754465444768,-2000.0,0.00028188,2]
[377625822,1754465444778,-201.149912,0.000282,5]
[377625823,1754465444788,-500.0,0.00028219,2]
[377625824,1754465444798,-1755.4,0.00028231,6]
[377625825,1754465444809,-151.0,0.00028233,2]
[377625826,1754465444818,-1511.5,0.0002824,3]
[377625827,1754465444828,-755.74,0.0002824,3]
[377625828,1754465444837,-377.88,0.0002824,3]
[377625829,1754465444847,-5928.43827106,0.00028273,9]
[377625830,1754465444856,-173.57,0.00028418,15]
[377625831,1754465444866,-162.59511474,0.00028418,15]
[377625832,1754465444876,-173.56,0.00028418,15]
[377625833,1754465444885,-162.58,0.00028419,15]
[377625834,1754465444895,-173.56,0.00028419,15]
[377625835,1754465444904,-600.0,0.0002842,2]
[377625836,1754465444914,-500.0,0.00028493,2]
[377625837,1754465444923,-156.511763,0.00028493,2]
[377625838,1754465444933,-200.0,0.00028514,15]
[377625839,1754465444943,-300.0,0.00028514,15]
[377625840,1754465444953,-173.57727741,0.00028518,15]
[377625841,1754465444962,-1000.0,0.00028521,5]
[377625842,1754465444972,-505.97880657,0.00028521,5]
[377625843,1754465444982,-1000.0,0.00028521,2]
[377625844,1754465444991,-1000.0,0.00028521,5]
[377625845,1754465445001,-1000.0,0.00028521,5]
[377625846,1754465445010,-1000.0,0.00028521,5]
[377625847,1754465445020,-501.33701781,0.00028521,5]
[377625848,1754465445030,-1755.4,0.00028538,6]
[377625849,1754465445039,-10420.6243428,0.00028552,2]
[377625850,1754465445049,-806.91462053,0.00028552,2]
[377625851,1754465445059,-3000.0,0.00028562,3]
[377625852,1754465445070,-460.0,0.00028644,2]
[377625853,1754465445080,-206.0,0.0002866,30]
[377625854,1754465445090,-842.45170444,0.00028665,2]
[377625855,1754465445099,-160.0,0.00028665,2]
[377625856,1754465445109,-160.0,0.00028665,2]
[377625857,1754465445118,-160.0,0.00028665,2]
[377625858,1754465445128,-231.78005385,0.00028665,2]
[377625859,1754465445137,-216.47163855,0.00028665,2]
[377625860,1754465445147,-461.26544088,0.00028665,2]
[377625861,1754465445156,-202.62779819,0.00028668,5]
[377625862,1754465445166,-1500.0,0.00028668,5]
[377625863,1754465445176,-1500.0,0.00028668,2]
[377625864,1754465445186,-526.96917457,0.00028668,5]
[377625865,1754465445196,-180.41807465,0.00028687,2]
[377625866,1754465445206,-600.0,0.0002871,2]
[377625867,1754465445215,-1810.161824,0.0002876,5]
[377625868,1754465445225,-500.0,0.00028767,2]
[377625869,1754465445235,-1000.0,0.0002878,5]
[377625870,1754465445244,-156.511763,0.00028799,3]
[377625871,1754465445254,-151.0,0.000288,16]
[377625872,1754465445263,-1000.0,0.000288,5]
[377625873,1754465445273,-151.0,0.000288,19]
[377625874,1754465445283,-1000.0,0.0002882,5]
[377625875,1754465445293,-1600.0,0.00028837,7]
[377625876,1754465445302,-1000.0,0.0002884,5]
[377625877,1754465445312,-1755.4,0.00028845,6]
[377625878,1754465445321,-1000.0,0.0002886,5]
[377625879,1754465445331,-160.0,0.0002887,3]
[377625880,1754465445340,-1000.0,0.0002888,5]
[377625881,1754465445349,-1135.685072,0.0002888,5]
[377625882,1754465445359,-1000.0,0.000289,5]
[377625883,1754465445470,-1000.0,0.000289,5]
[377625884,1754465445480,-6062.50535546,0.00028959,2]
[377625885,1754465445489,-3137.91876215,0.00028959,2]
[377625886,1754465445499,-501.57996362,0.00028973,5]
[377625887,1754465445509,-10420.6243428,0.0002899,2]
[377625888,1754465445519,-806.91462053,0.0002899,2]
[377625889,1754465445528,-253947.63951584,0.00029,2]
[377625890,1754465445701,-285882.54957715,0.00029,2]
[377625896,1754465446127,-151.0,0.0002688,7]
[377625897,1754465446136,-151.0,0.0002698,7]
[377625898,1754465446146,-151.0,0.0002698,7]
[377625899,1754465446155,-151.0,0.0002699,7]
[377625900,1754465446164,-151.0,0.0002699,7]
[377625901,1754465446174,-500.0,0.00027397,30]
[377625902,1754465446183,-500.0,0.00027397,30]
[377625903,1754465446193,-500.0,0.00027397,30]
[377625904,1754465446203,-500.0,0.00027397,30]
[377625905,1754465446212,-674.81403061,0.00029,2]
[377625913,1754465446539,5000.0,0.0002511,9]
[377625914,1754465459386,5000.0,0.0002511,9]
[377625915,1754465475000,5000.0,0.0002511,9]
[377625916,1754465490567,2822.33458901,0.0002511,9]
[377625918,1754465587254,-2177.66541099,0.0002511,9]
[377625919,1754465596020,600.0,0.000252,2]
[377625920,1754465623514,737.75,0.000252,2]
[377625921,1754465665862,4306.91917802,0.00025205,2]
[377625922,1754465665892,831.0338632,0.00025205,2]
[377625923,1754465672887,3536.56390493,0.00025205,2]
[377625926,1754466509506,150.0,0.00023105,2]
[377625928,1754466571719,482.187627,0.00024756,2]
[377625929,1754466626955,4966.93558361,0.00025113,2]
[377629766,1754466702772,33.27902126,0.00013699,2]
[377629767,1754466702796,139.16334874,0.00013699,2]
[377629769,1754466749671,294.0,0.00028906,120]
[377629770,1754466750343,294.0,0.00028896,120]
[377629771,1754466750674,294.0,0.00028886,120]
[377629772,1754466752176,150.5,0.00028906,120]
[377629773,1754466752641,218.86,0.00028896,120]
[377629774,1754466779552,-300.0,0.00025311,2]
[377629775,1754466779583,-214.94450273,0.00025311,2]
[377629776,1754466779616,-500.0,0.00025311,2]
[377629777,1754466779648,-419.67774721,0.00025311,2]
[377629778,1754466779679,-500.0,0.00025311,2]
[377629779,1754466779712,-500.0,0.00025311,2]
[377629780,1754466779743,-503.7195431,0.00025311,2]
[377629781,1754466779774,-500.0,0.00025311,2]
[377629782,1754466779804,-509.4908338,0.00025311,2]
[377629783,1754466779835,-500.0,0.00025311,2]
[377629784,1754466779866,-387.77532583,0.00025311,2]
[377629785,1754466780199,-500.0,0.00025311,2]
[377629786,1754466780230,-183.63134943,0.00025312,2]
[377629787,1754466780261,-160.0,0.00025312,2]
[377629788,1754466780292,-311.55490316,0.00025312,2]
[377629789,1754466782178,4801.37106405,0.00025112,2]
[377629790,1754466792234,300.0,0.00025311,2]
[377629791,1754466796909,500.0,0.00025311,2]
[377629792,1754466796956,500.0,0.00025311,2]
[377629793,1754466797014,388.11506309,0.00025311,2]
[377629794,1754466797664,500.0,0.00025311,2]
[377629795,1754466797716,500.0,0.00025311,2]
[377629796,1754466797751,200.14136768,0.00025311,2]
[377629797,1754466797777,299.85863232,0.00025311,2]
[377629798,1754466797825,500.0,0.00025311,2]
[377629799,1754466797853,500.0,0.00025311,2]
[377629800,1754466797882,388.11506309,0.00025311,2]
[377629801,1754466797910,500.0,0.00025311,2]
[377629802,1754466797939,505.68275179,0.00025311,2]
[377629803,1754466798034,500.0,0.00025311,2]
[377629804,1754466798117,164.66125642,0.00025311,2]
[377629805,1754466798491,500.0,0.00025311,2]
[377629806,1754466798537,500.0,0.00025311,2]
[377629807,1754466802353,500.0,0.00025311,2]
[377629808,1754466810852,170.76827324,0.00023211,2]
[377629809,1754466814524,4970.91402314,0.00025312,2]
[377629810,1754466814551,29.08597686,0.00025312,2]
[377629811,1754466814704,500.0,0.00025311,2]
[377629812,1754466814759,500.0,0.00025311,2]
[377629813,1754466815309,500.0,0.00025311,2]
[377629814,1754466815366,170.0296878,0.00025311,2]
[377629815,1754466815424,500.0,0.00025311,2]
[377629816,1754466815459,500.0,0.00025311,2]
[377629817,1754466815493,488.36653667,0.00025311,2]
[377629818,1754466815525,442.65579856,0.00025311,2]
[377629819,1754466815583,500.0,0.00025311,2]
[377629820,1754466815970,500.0,0.00025311,2]
[377629821,1754466815996,500.0,0.00025311,2]
[377629822,1754466816027,394.63156862,0.00025311,2]
[377629823,1754466816055,600.0,0.00025311,2]
[377629824,1754466818267,500.0,0.00025311,2]
[377629825,1754466818322,258.32895853,0.00025311,2]
[377629826,1754466820313,488.36653667,0.00025311,2]
[377629827,1754466824281,500.0,0.00025311,2]
[377629828,1754466834265,329.73491086,0.00025311,2]
[377629829,1754466834297,500.0,0.00025311,2]
[377629830,1754466834326,500.0,0.00025311,2]
[377629831,1754466834358,558.14475089,0.00025311,2]
[377629832,1754466834408,240.65527454,0.00025311,2]
[377629833,1754466834435,259.34472546,0.00025311,2]
[377629834,1754466834465,623.75380158,0.00025311,2]
[377629835,1754466836353,405.18422374,0.00025311,2]
[377629836,1754466844496,300.0,0.00025311,2]
[377629837,1754466847254,500.0,0.00025311,2]
[377629838,1754466847296,500.0,0.00025311,2]
[377629839,1754466847351,500.0,0.00025311,2]
[377629840,1754466852054,500.0,0.00025311,2]
[377629841,1754466852085,500.0,0.00025311,2]
[377629842,1754466852114,500.0,0.00025311,2]
[377629843,1754466852142,441.85524911,0.00025311,2]
[377629844,1754466852172,500.0,0.00025311,2]
[377629845,1754466852207,305.55263902,0.00025311,2]
[377629846,1754466852236,500.0,0.00025311,2]
[377629847,1754466852299,381.04948169,0.00025311,2]
[377629848,1754466852329,318.10144753,0.00025311,2]
[377629849,1754466855375,2290.38238681,0.00025213,2]
[377629850,1754466855535,500.0,0.00025311,2]
[377629851,1754466855607,174.77604506,0.00025311,2]
[377629852,1754466855633,325.22395494,0.00025311,2]
[377629853,1754466855667,289.26313724,0.00025311,2]
[377629854,1754466863105,500.0,0.00025311,2]
[377629855,1754466863166,500.0,0.00025311,2]
[377629856,1754466863212,500.0,0.00025311,2]
[377629857,1754466863240,500.0,0.00025311,2]
[377629858,1754466863272,500.0,0.00025311,2]
[377629859,1754466863326,200.0,0.00025311,2]
[377629860,1754466865182,500.0,0.00025311,2]
[377629861,1754466865238,500.0,0.00025311,2]
[377629862,1754466865301,500.0,0.00025311,2]
[377629863,1754466867007,500.0,0.00025311,2]
[377629864,1754466867054,500.0,0.00025311,2]
[377629865,1754466867326,500.0,0.00025311,2]
[377629866,1754466867372,155.00262488,0.00025311,2]
[377629867,1754466867432,500.0,0.00025311,2]
[377629868,1754466870457,500.0,0.00025311,2]
[377629869,1754466870911,1033.36325539,0.00025312,2]
[377629870,1754466880726,500.0,0.00025311,2]
[377629871,1754466880755,500.0,0.00025311,2]
[377629872,1754466880786,497.14702755,0.00025311,2]
[377629873,1754466880813,2.85297245,0.00025311,2]
[377629874,1754466880845,500.0,0.00025311,2]
[377629875,1754466881018,300.0,0.00025311,2]
[377629876,1754466902990,300.0,0.00025312,2]
[377629877,1754466903712,500.0,0.00025311,2]
[377629878,1754466903741,500.0,0.00025311,2]
[377629879,1754466903770,500.0,0.00025311,2]
[377629880,1754466903823,500.0,0.00025311,2]
[377629881,1754466903853,500.0,0.00025311,2]
[377629882,1754466903882,500.0,0.00025311,2]
[377629883,1754466903911,500.0,0.00025311,2]
[377629884,1754466903941,500.0,0.00025311,2]
[377629885,1754466903969,300.0,0.00025311,2]
[377629886,1754466904000,500.0,0.00025311,2]
[377629887,1754466904044,200.0,0.00025311,2]
[377629888,1754466917430,500.0,0.00025311,2]
[377629889,1754466917460,500.0,0.00025311,2]
[377629890,1754466917486,500.0,0.00025311,2]
[377629891,1754466917518,500.0,0.00025311,2]
[377629892,1754466917547,500.0,0.00025311,2]
[377629893,1754466917578,500.0,0.00025311,2]
[377629894,1754466917605,500.0,0.00025311,2]
[377629895,1754466917634,397.14702755,0.00025311,2]
[377629896,1754466917658,102.85297245,0.00025311,2]
[377629897,1754466917688,500.0,0.00025311,2]
[377629898,1754466917717,500.0,0.00025311,2]
[377629899,1754466917745,500.0,0.00025311,2]
[377629900,1754466917776,200.0,0.00025311,2]
[377629901,1754466917833,281.26938666,0.00025311,2]
[377629902,1754466930661,5386.53777626,0.00025113,2]
[377629903,1754466934466,500.0,0.00025311,2]
[377629904,1754466934497,500.0,0.00025311,2]
[377629905,1754466934527,500.0,0.00025311,2]
[377629906,1754466934556,500.0,0.00025311,2]
[377629907,1754466934584,500.0,0.00025311,2]
[377629908,1754466934614,29.33986463,0.00025311,2]
[377629909,1754466934639,470.66013537,0.00025311,2]
[377629910,1754466934710,500.0,0.00025311,2]
[377629911,1754466934752,597.46122668,0.00025311,2]
[377629912,1754466946228,318.10144753,0.00025311,2]
[377629913,1754466950722,500.0,0.00025311,2]
[377629914,1754466950788,500.0,0.00025311,2]
[377629915,1754466950822,500.0,0.00025311,2]
[377629916,1754466950883,500.0,0.00025311,2]
[377629917,1754466950950,500.0,0.00025311,2]
[377629918,1754466951002,600.0,0.00025311,2]
[377629919,1754466953265,500.0,0.00025311,2]
[377629920,1754466957061,500.0,0.00025311,2]
[377629921,1754466962537,300.0,0.00025312,2]
[377629922,1754466968524,500.0,0.00025311,2]
[377629923,1754466968558,500.0,0.00025311,2]
[377629924,1754466968640,500.0,0.00025311,2]
[377629925,1754466993063,500.0,0.00025312,2]
[377629926,1754466993093,500.0,0.00025312,2]
[377629927,1754466993123,500.0,0.00025312,2]
[377629928,1754466993172,515.14133462,0.00025312,2]
[377629929,1754466993241,198.6358558,0.00025312,2]
[377629930,1754466993266,268.22923318,0.00025312,2]
[377629931,1754467017983,500.0,0.00025312,2]
[377629932,1754467018036,500.0,0.00025312,2]
[377629933,1754467018085,471.50370698,0.00025312,2]
[377629934,1754467023403,300.0,0.00025312,2]
[377629935,1754467027987,500.0,0.00025312,2]
[377629936,1754467028055,186.8948688,0.00025312,2]
[377629937,1754467057164,552.79217784,0.00025312,2]
[377629938,1754467080871,5206.9865168,0.00025113,2]
[377629939,1754467084743,300.0,0.00025312,2]
[377629940,1754467090876,500.0,0.00025312,2]
[377629941,1754467090933,500.0,0.00025312,2]
[377629942,1754467090985,213.5934964,0.00025312,2]
[377629943,1754467091009,286.4065036,0.00025312,2]
[377629944,1754467091047,500.0,0.00025312,2]
[377629945,1754467091100,336.01271268,0.00025312,2]
[377629946,1754467108664,500.0,0.00025312,2]
[377629947,1754467108725,500.0,0.00025312,2]
[377629948,1754467112654,150.0,0.00023212,2]
[377629949,1754467126512,500.0,0.00025312,2]
[377629950,1754467143670,300.0,0.00025312,2]
[377629951,1754467153656,500.0,0.00025312,2]
[377629952,1754467205726,300.0,0.00025312,2]
[377629953,1754467246835,5033.57319635,0.00025113,2]
[377629954,1754467256821,500.0,0.00025312,2]
[377629955,1754467256892,500.0,0.00025312,2]
[377629956,1754467256948,94.00758737,0.00025312,2]
[377629957,1754467256972,405.99241263,0.00025312,2]
[377629958,1754467257001,300.0,0.00025312,2]
[377629959,1754467263062,300.0,0.00025312,2]
[377629960,1754467268369,2619.14614271,0.00025312,2]
[377629961,1754467269564,1309.57307135,0.00025312,2]
[377629962,1754467270671,654.78653568,0.00025312,2]
[377629963,1754467271643,327.39326784,0.00025312,2]
[377629964,1754467272974,163.69663392,0.00025312,2]
[377629965,1754467313242,150.0,0.00025088,2]
[377629966,1754467322567,300.0,0.00025312,2]
[377629967,1754467333495,1008.02252986,0.00025312,2]
[377629968,1754467385319,300.0,0.00025312,2]
[377629969,1754467399236,2161.38940601,0.0002524,3]
[377629970,1754467399268,2704.39801708,0.0002524,3]
[377629971,1754467417025,150.0,0.00023212,2]
[377629972,1754467446663,987.97,0.00025312,2]
[377629973,1754467454833,150.0,0.000251,2]
[377629974,1754467469455,205.0,0.00027387,120]
[377629975,1754467469669,163.69663391,0.00025312,2]
[377629976,1754467469997,205.0,0.00027377,120]
[377629977,1754467470507,205.0,0.00027367,120]
[377629978,1754467494535,5843.93534901,0.00024784,2]
[377629979,1754467494559,10000.0,0.00024784,2]
[377629980,1754467494583,9056.06465099,0.00024784,2]
[377629981,1754467549687,943.93534901,0.0002524,3]
[377629982,1754467549718,4518.91618977,0.0002524,3]
[377629983,1754467713134,5255.25981332,0.00025239,3]
[377629986,1754467745776,172.44237,0.00013699,2]
[377630039,1754467832757,-180.47766,0.00025357,2]
[377630040,1754467832768,-300.0,0.00025437,2]
[377630041,1754467832778,-500.0,0.00025438,2]
[377630043,1754467832792,-622.54197797,0.00025438,2]
[377630044,1754467832803,-500.0,0.00025438,2]
[377630045,1754467832813,-500.0,0.00025438,2]
[377630046,1754467832823,-500.0,0.00025438,2]
[377630047,1754467832834,-455.0,0.00025438,2]
[377630048,1754467832844,-500.0,0.00025438,2]
[377630049,1754467832854,-500.0,0.00025438,2]
[377630050,1754467832864,-500.0,0.00025438,2]
[377630051,1754467832874,-500.0,0.00025438,2]
[377630052,1754467832885,-500.0,0.00025438,2]
[377630053,1754467832895,-164.16622359,0.00025438,2]
[377630055,1754467832905,-2.80967613,0.00025438,2]
[377630092,1754467838702,-157.19032387,0.00025438,2]
[377630093,1754467838712,-50000.0,0.00025439,2]
[377630094,1754467838722,-218.08843221,0.00025439,2]
[377630095,1754467838731,-40236.363274,0.0002544,2]
[377630096,1754467838741,-166.37,0.00025463,10]
[377630097,1754467838751,-501.45674522,0.00025473,2]
[377630098,1754467838762,-500.0,0.00025473,2]
[377630099,1754467838772,-500.0,0.00025473,2]
[377630100,1754467838782,-501.65518874,0.00025473,2]
[377630101,1754467838795,-338.74755064,0.00025473,2]
[377630102,1754467838805,-504.54779887,0.00025473,2]
[377630103,1754467838816,-507.03832368,0.00025473,2]
[377630104,1754467838825,-513.95442954,0.00025473,2]
[377630105,1754467838838,-1009.08962621,0.00026021,2]
[377630106,1754467838848,-1006.98484223,0.00026021,2]
[377630107,1754467838859,-250.0,0.00026122,2]
[377630108,1754467838871,-5255.25981318,0.00026193,5]
[377630109,1754467838881,-2004.08458845,0.00026326,2]
[377630110,1754467838891,-151.0,0.00026561,2]
[377630111,1754467838901,-151.0,0.00026561,2]
[377630112,1754467838911,-151.0,0.00026561,2]
[377630113,1754467838920,-151.0,0.00026561,2]
[377630114,1754467838930,-151.0,0.00026561,2]
[377630115,1754467838941,-151.0,0.00026561,2]
[377630116,1754467838951,-151.0,0.00026561,2]
[377630117,1754467838961,-151.0,0.00026561,2]
[377630118,1754467838972,-151.0,0.00026561,2]
[377630119,1754467838982,-151.0,0.00026561,2]
[377630120,1754467838993,-151.0,0.00026561,2]
[377630121,1754467839003,-151.0,0.00026561,2]
[377630122,1754467839013,-151.0,0.00026561,2]
[377630123,1754467839023,-151.0,0.00026561,2]
[377630124,1754467839033,-151.0,0.00026561,2]
[377630125,1754467839042,-151.0,0.00026561,2]
[377630126,1754467839052,-151.0,0.00026561,2]
[377630127,1754467839063,-151.0,0.00026561,2]
[377630128,1754467839073,-151.0,0.00026561,2]
[377630129,1754467839083,-2183.31810187,0.00026561,2]
[377630130,1754467839092,-152.88357135,0.00026561,2]
[377630131,1754467839102,-500.0,0.00026561,2]
[377630132,1754467839111,-151.0,0.00026561,2]
[377630133,1754467839121,-500.0,0.00026561,2]
[377630134,1754467839131,-151.0,0.00026561,2]
[377630135,1754467839140,-500.0,0.00026561,2]
[377630136,1754467839150,-151.0,0.00026561,2]
[377630137,1754467839159,-500.0,0.00026561,2]
[377630138,1754467839169,-151.0,0.00026561,2]
[377630139,1754467839178,-500.0,0.00026561,2]
[377630140,1754467839188,-600.0,0.00026561,2]
[377630141,1754467839199,-349.41,0.00026569,2]
[377630142,1754467839209,-500.0,0.00026573,2]
[377630143,1754467839219,-500.0,0.00026573,2]
[377630144,1754467839229,-500.0,0.00026573,2]
[377630145,1754467839239,-440.95886782,0.00026573,2]
[377630146,1754467839249,-500.0,0.00026573,2]
[377630147,1754467839259,-500.0,0.00026573,2]
[377630148,1754467839268,-376.1,0.00026577,3]
[377630149,1754467839278,-188.05,0.00026577,3]
[377630150,1754467839288,-564.17,0.00026577,3]
[377630151,1754467839298,-200.0,0.00026582,10]
[377630152,1754467839307,-200.0,0.00026582,10]
[377630153,1754467839318,-200.0,0.00026582,10]
[377630154,1754467839327,-200.0,0.00026582,10]
[377630155,1754467839337,-200.0,0.00026582,10]
[377630156,1754467839346,-204.2089,0.00026582,10]
[377630157,1754467839356,-508.65591002,0.00026587,2]
[377630158,1754467839366,-151.0,0.00026587,2]
[377630159,1754467839375,-500.0,0.00026587,2]
[377630160,1754467839385,-500.0,0.00026587,2]
[377630161,1754467839395,-500.0,0.00026587,2]
[377630162,1754467839404,-500.0,0.00026587,2]
[377630163,1754467839414,-151.0,0.00026587,2]
[377630164,1754467839424,-500.0,0.00026587,2]
[377630165,1754467839433,-500.0,0.00026587,2]
[377630166,1754467839442,-151.0,0.00026587,2]
[377630167,1754467839452,-500.0,0.00026587,2]
[377630168,1754467839461,-374.62827822,0.00026603,2]
[377630169,1754467839471,-1504.41149998,0.00026616,2]
[377630170,1754467839480,-500.0,0.00026673,2]
[377630171,1754467839491,-374.62827822,0.0002674,2]
[377630172,1754467839500,-752.2,0.00026839,3]
[377630173,1754467839510,-151.0,0.00026861,2]
[377630174,1754467839520,-500.0,0.00026861,2]
[377630175,1754467839530,-500.0,0.00026861,2]
[377630176,1754467839540,-500.0,0.00026861,2]
[377630177,1754467839550,-500.0,0.00026861,2]
[377630178,1754467839560,-151.0,0.00026861,2]
[377630179,1754467839569,-500.0,0.00026861,2]
[377630180,1754467839579,-500.0,0.00026861,2]
[377630181,1754467839589,-500.0,0.00026861,2]
[377630182,1754467839599,-500.0,0.00026861,2]
[377630183,1754467839609,-500.0,0.00026861,2]
[377630184,1754467839618,-151.0,0.00026861,2]
[377630185,1754467839628,-151.0,0.00026861,2]
[377630186,1754467839638,-500.0,0.00026861,2]
[377630187,1754467839649,-500.0,0.00026861,2]
[377630188,1754467839660,-152.26540486,0.00026861,2]
[377630189,1754467839669,-500.0,0.00026861,2]
[377630190,1754467839682,-500.0,0.00026861,2]
[377630191,1754467839693,-151.0,0.00026861,2]
[377630192,1754467839703,-500.0,0.00026861,2]
[377630193,1754467839714,-151.0,0.00026861,2]
[377630194,1754467839725,-152.08480537,0.00026861,2]
[377630195,1754467839734,-268.99295525,0.00026861,2]
[377630196,1754467839746,-151.0,0.00026861,2]
[377630197,1754467839756,-720.0,0.00026861,2]
[377630198,1754467839766,-500.0,0.00026861,2]
[377630199,1754467839776,-151.0,0.00026861,2]
[377630200,1754467839787,-500.0,0.00026861,2]
[377630201,1754467839801,-374.62827822,0.00026877,2]
[377630202,1754467839813,-374.62827822,0.00026986,2]
[377630203,1754467839823,-160.0,0.00027028,2]
[377630204,1754467839835,-160.0,0.00027028,2]
[377630205,1754467839844,-160.0,0.00027028,2]
[377630206,1754467839856,-160.0,0.00027038,2]
[377630207,1754467839869,-461.26544088,0.00027038,2]
[377630208,1754467839882,-160.0,0.00027038,2]
[377630209,1754467839891,-160.0,0.00027038,2]
[377630210,1754467839901,-231.78005385,0.00027038,2]
[377630211,1754467839911,-160.0,0.00027038,2]
[377630212,1754467839923,-215.26769691,0.00027052,2]
[377630213,1754467839934,-1000.0,0.00027121,2]
[377630223,1754467839943,-430.61356137,0.00027121,2]
[377630224,1754467840094,-1000.0,0.00027121,2]
[377630225,1754467840104,-330.64874332,0.00027121,2]
[377630226,1754467840114,-1000.0,0.00027121,2]
[377630227,1754467840124,-374.62827822,0.00027123,2]
[377630228,1754467840135,-191.06,0.00027125,3]
[377630229,1754467840145,-573.2,0.00027125,3]
[377630230,1754467840156,-208.71,0.00027127,3]
[377630231,1754467840167,-161.52432734,0.00027135,2]
[377630232,1754467840176,-500.0,0.00027135,2]
[377630233,1754467840186,-257.5313806,0.00027135,2]
[377630234,1754467840196,-500.0,0.00027135,2]
[377630235,1754467840206,-500.0,0.00027135,2]
[377630236,1754467840215,-151.0,0.00027135,2]
[377630237,1754467840225,-500.0,0.00027135,2]
[377630238,1754467840235,-500.0,0.00027135,2]
[377630239,1754467840244,-500.0,0.00027135,2]
[377630240,1754467840254,-500.0,0.00027135,2]
[377630241,1754467840264,-500.0,0.00027135,2]
[377630242,1754467840274,-222.58200839,0.00027135,2]
[377630243,1754467840283,-152.2967874,0.00027135,2]
[377630244,1754467840293,-500.0,0.00027135,2]
[377630245,1754467840304,-500.0,0.00027135,2]
[377630246,1754467840314,-500.0,0.00027135,2]
[377630247,1754467840324,-500.0,0.00027135,2]
[377630248,1754467840334,-151.0,0.00027135,2]
[377630249,1754467840343,-500.0,0.00027135,2]
[377630250,1754467840353,-151.0,0.00027135,2]
[377630251,1754467840363,-720.0,0.00027135,2]
[377630252,1754467840373,-500.0,0.00027135,2]
[377630253,1754467840383,-700.31297712,0.00027137,2]
[377630254,1754467840392,-27284.475764,0.00027137,2]
[377630255,1754467840401,-395.17325843,0.00027137,2]
[377630256,1754467840410,-5255.25981318,0.00027147,7]
[377630257,1754467840420,-12657.93264304,0.00027147,2]
[377630258,1754467840429,-160.0,0.00027147,2]
[377630259,1754467840438,-842.45170444,0.00027147,2]
[377630260,1754467840448,-413.16299039,0.00027173,2]
[377630261,1754467840457,-500.0,0.00027173,2]
[377630262,1754467840466,-500.0,0.00027173,2]
[377630263,1754467840475,-500.0,0.00027173,2]
[377630264,1754467840484,-500.0,0.00027173,2]
[377630265,1754467840493,-500.0,0.00027173,2]
[377630266,1754467840503,-500.0,0.00027173,2]
[377630267,1754467840513,-500.0,0.00027173,2]
[377630268,1754467840522,-500.0,0.00027173,2]